{"text_format":"1","workbook":"xlsx","n_sheets":3,"sheets":["URLAP","HAZTARTAS_LETMINIMUM_PARAMETER","Munka1"],"not_rendered":{"charts":0,"images":0,"macros":1,"external_links":0,"defined_names":9,"comments":0,"pivot_tables":0},"unopened":[],"bounds":{"document_bytes":16777216,"sheet_cells":100000,"rows_first":2000,"rows_last":500,"rows_between":2000,"halvings":0,"cell_chars":16384,"cell_head_chars":4096},"cells_cut":0,"cells_raw":0,"read":"whole","date_system":"1900"}

{"sheet":"URLAP","index":0,"n_rows":56,"n_cols":8,"rows_kept":56,"cut":false,"hidden":false,"merged":[[51,2,55,2],[1,3,1,4],[34,3,34,4],[28,3,28,4],[7,2,17,2],[20,2,22,2]]}
[]
[null,null,null,"Az adatok a Főadós háztartására vonatkoznak"]
[null,null,null,"Kalkuláció dátuma",{"$f":"TODAY()","v":"2020-06-30"},null,null,{"$f":"IF(E3<>\"\",0,1)","v":0}]
[null,null,null,"Referens kártyaszáma"]
[null,null,null,"Ügyfél azonosító",null,"Igénylő CIF azonosítója"]
[null,null,null,"Kalkuláció azonosítója",null,"Kalkuláció azonosítója"]
[null,null,null,"Igénylők száma",null,"Adott ügyletnek a Főadós háztartását tekintve egy Adósa van: Egy szereplős, több adósa van: Több szereplős. ",null,{"$f":"IF(E7<>\"\",0,1)","v":1}]
[null,null,"Meglévő és új hitel havi adósságterhei","Igénylő nettó havi jövedelme",null,"A Főadós és vele egy háztartásban lévő Adós(ok) igazolt jövedelme ",null,1]
[null,null,null,"JTM kategória",1,"JTM kategória jövedelmes irányelv alapján",null,0]
[null,null,null,"MKB-val szemben fennálló fedezett hitelek havi törlesztőrészlete",null,"Ingatlanfedezetű hitelek és Babaváró kölcsön havi törlesztőrészlete",null,1]
[null,null,null,"MKB-val szemben fennálló személyi kölcsönök havi törlesztőrészlete",null,null,null,1]
[null,null,null,"MKB-nál fennálló hitelkártya és folyószámlahitel keretek teljes összege",null,null,null,1]
[null,null,null,"Idegen banknál fennálló hitelkártya keretek teljes összege",null,null,null,1]
[null,null,null,"Idegen bankkal szemben fennálló fogyasztási hitelek havi törlesztőrészlete",null,null,null,1]
[null,null,null,"Idegen bankkal szemben fennálló fedezett jelzáloghitelek havi törlesztőrészlete",null,"Ingatlanfedezetű hitelek és Babaváró kölcsön havi törlesztőrészlete",null,1]
[null,null,null,"Idegen banknál fennálló folyószámlahitel keretek teljes összege",null,null,null,1]
[null,null,null,"Meglévő havi adósságszolgálat",{"$f":"IF(H27<>0,\"\",+E10+E11+E14+E15+(E12+E13+E16)*0.05)","v":""}]
[null,null,null,"Igényelt hitel törlesztőrészlete",null,null,null,1]
[]
[null,null,null,"Családi állapot (főadós)"]
[null,null,"Megélhetési költségek számításához szükséges adat","Eltartottak száma (főadós)",null,"Főadós háztartása ",null,1]
[null,null,null,"Egy háztartásban élők száma (főadós)",null,"Főadós háztartása",null,1]
[null,null,null,"Háztartás nem hiteljellegű havi kiadása (főadós)",null,"Nyomtatványon Ügyfél által megjelölt összeg",null,1]
[]
[null,null,null,"Megélhetési költség után fennmaradó szabad jövedelem",{"$f":"IF(H27<>0,\"\",+E8-E45)","v":""}]
[null,null,null,"Megélhetési költség, meglévő adósságterhek figyelembe vétele után fennmaradó szabad jövedelem",{"$f":"IF(H27<>0,\"\",+E8-E45-E17)","v":""}]
[null,null,null,null,{"$f":"IF(H27<>0,\"Kitöltetlen mező\",\"\")","v":"Kitöltetlen mező"},null,null,{"$f":"SUM(H3:H23)","v":13}]
[]
[null,null,null,"Vétó kritériumok"]
[null,null,null,"JTM korlátot teljesítik?",{"$f":"IFERROR(IF(E27=\"HIBA\",\"HIBA\",IF(E56>E54,\"NEM\",\"IGEN\")),\"Kitöltetlen mező\")","v":"Kitöltetlen mező"},"JTM szabályoknak való megfelelés vizsgálata"]
[null,null,null,"A háztartás rendelkezésre álló szabad jövedelme elegendő?",{"$f":"IFERROR(IF(E43=999999999,\"n/a\",IF(E46<E45,\"NEM\",\"IGEN\")),\"Kitöltettlen mező\")","v":"Kitöltettlen mező"}]
[null,null,null,"Vétó kritériumoknak megfelel?",{"$f":"IF(E27=\"Kitöltetlen mező\",\"Kitöltetlen mező\",IFERROR(IF(E30=\"NEM\",\"NEM\",IF(E31=\"NEM\",\"NEM\",\"IGEN\")),\"Kitöltetlen mező\"))","v":"Kitöltetlen mező"},"JTM szabályok illetve megélhetési költségek együttes vizsgálatának eredménye"]
[]
[null,null,"Aláírás1",null,"Aláírás2"]
[null,null,null,"Segédváltozók"]
[null,null,null,"AKTIV_KOR_FLAG","I","A főadós életkora alapján vizsgálandó (65 év alatt, aktív)"]
[null,null,null,"GYERMEK_SZAM_HAZTIP",{"$f":"IF(D51=\"Hibás adat\",\"Hibás adat\",IF(+E21>4,4,E21))","v":0},"eltartottak száma, háztartás típus esetén legfeljebb 4 lehet"]
[null,null,null,"FELNOTT_SZAM_HAZTIP",{"$f":"MAX(MAX(MIN(IF(D51=\"Hibás adat\",\"Hibás adat\",E22-E21),3)),1)","v":1},"Házas vagy élettársi kapcsolat esetén 2,  ellenkező esetben (együtt élők száma - eltartottak száma)"]
[null,null,null,"HAZTART_TIP_LETMIN",{"$f":"IF(D51=\"Hibás adat\",\"Hibás adat\",CONCATENATE(\"AKTIV: \",E36,\" + FELNOTT: \",E38,\" + GYERMEK: \",E37,\" / \",2018))","v":"AKTIV: I + FELNOTT: 1 + GYERMEK: 0 / 2018"},"Háztartás típus meghatározása a létminimum paraméter tábla lekérdezéséhez"]
[]
[null,null,null,"Háztartás létszáma (korrigált)",{"$f":"+MAX((E37+E38),E22)","v":1}]
[null,null,null,"Korrigált kiadás (háztartás) - keresők számával korrigála 1 szereplős igénylésnél",{"$f":"IF(E43=FALSE,999999999,IF(E43=999999999,E43,+E41*E43))","v":111290.84254723274},"KSH alapú, korrigált háztartás kiadás"]
[null,null,null,"Korrigált kiadás \n(1 főre) - keresők számával korrigála 1 szereplős igénylésnél",{"$f":"IF(E47=\"TOBB\",E50,E50/E49)","v":111290.84254723274},"KSH alapú 1 főre jutó havi kiadás korrigálva több szereplő esetén"]
[null,null,null,"Háztartás havi kiadásai önbevallás alapján - keresők számával korrigálva 1 szereplős igénylésnél",{"$f":"IF(E47=\"TOBB\",E23,E23/MAX(1,E22-E21))","v":0},"önbevallás alapú havi kiadás korrigálva több szereplő esetén"]
[null,null,null,"Figyelembe vett havi kiadás",{"$f":"MAX(E42:E44)","v":111290.84254723274},"számított, illetve a önbevallott kiadások közül a magasabb"]
[null,null,null,"Háztartás rendelkezésre álló szabad jövedelme nem hiteljellegű kiadások nélkül (JTM nevező alapján)",{"$f":"+E8-E17-E18","v":{"$error":"#VALUE!"}}]
[null,null,null,"IGENYLOK_SZAMA",{"$f":"IF(E7=\"Egy szereplős\",\"EGY\",IF(E7=\"Több szereplős\",\"TOBB\"))","v":false}]
[null,null,null,"KERESOK_MINIMUM_SZAMA",{"$f":"IF(E47=\"EGY\",1,IF(E47=\"TOBB\",2))","v":false},"egy szereplő esetén:1,  több szereplő esetén: 2"]
[null,null,null,"KERESOK_SZAMA",{"$f":"MAX(E48,E38)","v":1}]
[null,null,null,"Korrigált kiadás (1 főre), nyers korr. KSH",{"$f":"IFERROR(VLOOKUP(E39,HAZTARTAS_LETMINIMUM_PARAMETER!A2:B31,2,FALSE),HAZTARTAS_LETMINIMUM_PARAMETER!D1)","v":111290.84254723274},"nem azonosított háztartástípus esetén átlag értéket használ"]
[]
[null,null,"JTM számításához szükséges adat","JTM számításhoz felhasznált jövedelem",{"$f":"+E8","v":0},"JTM számításhoz felhasznált igazolt nettó jövedelem"]
[null,null,null,"Havi adósságszolgálat (igényelt hitel is)",{"$f":"+E17+E18","v":{"$error":"#VALUE!"}},"KHR-ben szereplő meglévő hitelek havi adósságszolgálata + igényelt hitel várható törlesztőrészlete"]
[null,null,null,"JTM korlát (%)",{"$f":"IF(AND(E9=1,E8<500000),0.5,IF(AND(E9=1,E8>=500000),0.6,IF(AND(E9=2,E8<500000),0.35,IF(AND(E9=2,E8>=500000),0.4,IF(AND(E9=3,E8<500000),0.25,IF(AND(E9=3,E8>=500000),0.3))))))","v":0.5},"Jövedelmes irányelv alapján számított JTM korlát (%)"]
[null,null,null,"JTM korlát (összeg)",{"$f":"+E54*E8","v":0},"Jövedelmes irányelv alapján számított JTM korlát (összeg)"]
[null,null,null,"Tényleges JTM",{"$f":"+E53/E52","v":{"$error":"#VALUE!"}},"Számított JTM"]

{"sheet":"HAZTARTAS_LETMINIMUM_PARAMETER","index":1,"n_rows":31,"n_cols":16,"rows_kept":31,"cut":false,"hidden":true,"merged":[]}
["HAZTARTTIP","korrigált összes kiadás tételes szakértői becslés alapján","átlag",{"$f":"AVERAGE(B2:B16)","v":59606.55084009641},null,"Keresők száma","Eltartottak száma","forrás, referencia év","KSH háztartás kategória","1 főre jutó KSH kiadás adat","Kiadások súlyozása után kapott korrekció","1 főre jutó korrigált KSH kiadás adat","háztartás összekiadása (1 szereplős hitelügylet)","háztartás összekiadása (több szereplős hitelügylet)","háztartás létszáma","1 szereplős korrekció"]
["AKTIV: I + FELNOTT: 1 + GYERMEK: 0 / 2018",{"$f":"+L2","v":111290.84254723274},null,null,null,1,0,"KSH adat,  2.2.3.16 tábla, 2018","egyszemélyes háztartás, 65 év alattiak",160569.27259916338,0.69310174198181307,111290.84254723274,{"$f":"+N2/P2","v":111290.84254723274},{"$f":"+O2*L2","v":111290.84254723274},1,1]
["AKTIV: I + FELNOTT: 1 + GYERMEK: 1 / 2018",{"$f":"+L3","v":56741.786973466718},null,null,null,1,1,"KSH adat,  2.2.3.16 tábla, 2018","egy felnőtt  egy vagy több gyermekkel",81000.783647263903,0.70050911137553395,56741.786973466718,{"$f":"+N3/P3","v":113483.57394693344},113483.57394693344,2,1]
["AKTIV: I + FELNOTT: 1 + GYERMEK: 2 / 2018",56741.786973466718,null,null,null,1,2,"KSH adat,  2.2.3.16 tábla, 2018","egy felnőtt  egy vagy több gyermekkel",81000.783647263903,0.70050911137553395,56741.786973466718,170225.36092040016,170225.36092040016,3,1]
["AKTIV: I + FELNOTT: 1 + GYERMEK: 3 / 2018",56741.786973466718,null,null,null,1,3,"KSH adat,  2.2.3.16 tábla, 2018","egy felnőtt  egy vagy több gyermekkel",81000.783647263903,0.70050911137553395,56741.786973466718,226967.14789386687,226967.14789386687,4,1]
["AKTIV: I + FELNOTT: 1 + GYERMEK: 4 / 2018",56741.786973466718,null,null,null,1,"4 vagy annál több","KSH adat,  2.2.3.16 tábla, 2018","egy felnőtt  egy vagy több gyermekkel",81000.783647263903,0.70050911137553395,56741.786973466718,283708.93486733362,283708.93486733362,5,1]
["AKTIV: I + FELNOTT: 2 + GYERMEK: 0 / 2018",87609.462838473526,null,null,null,2,0,"KSH adat,  2.2.3.16 tábla, 2018","gyermek nélküli háztartások, mindketten 65 évnél fiatalabbak",126169.94892305545,0.69437662126582955,87609.462838473526,87609.462838473526,175218.92567694705,2,2]
["AKTIV: I + FELNOTT: 2 + GYERMEK: 1 / 2018",65511.388556118167,null,null,null,2,1,"KSH adat,  2.2.3.16 tábla, 2018","gyermekes háztartások, 2 felnőtt, 1 gyermekkel",95332.716994018294,0.68718684017186582,65511.388556118167,98267.082834177243,196534.16566835449,3,2]
["AKTIV: I + FELNOTT: 2 + GYERMEK: 2 / 2018",57480.689788004733,null,null,null,2,2,"KSH adat,  2.2.3.16 tábla, 2018","gyermekes háztartások, 2 felnőtt, 2 gyermekkel",84155.898983805688,0.68302627007841565,57480.689788004733,114961.37957600947,229922.75915201893,4,2]
["AKTIV: I + FELNOTT: 2 + GYERMEK: 3 / 2018",41957.613520260151,null,null,null,2,3,"KSH adat,  2.2.3.16 tábla, 2018","gyermekes háztartások, 2 felnőtt, 3 vagy több gyermekkel",60885.767596921702,0.6891202193266176,41957.613520260151,104894.03380065037,209788.06760130075,5,2]
["AKTIV: I + FELNOTT: 2 + GYERMEK: 4 / 2018",41957.613520260151,null,null,null,2,"4 vagy annál több","KSH adat,  2.2.3.16 tábla, 2018","gyermekes háztartások, 2 felnőtt, 3 vagy több gyermekkel",60885.767596921702,0.6891202193266176,41957.613520260151,125872.84056078046,251745.68112156092,6,2]
["AKTIV: I + FELNOTT: 3 + GYERMEK: 0 / 2018",72594.755546436398,null,null,null,"3 vagy annál több",0,"KSH adat,  2.2.3.16 tábla, 2018","gyermek nélküli háztartások - egyéb",103640.73079980143,0.70044619510320438,72594.755546436398,72594.755546436398,217784.26663930918,3,3]
["AKTIV: I + FELNOTT: 3 + GYERMEK: 1 / 2018",47182.187097698363,null,null,null,"3 vagy annál több",1,"KSH adat,  2.2.3.16 tábla, 2018","gyermekes háztartások - egyéb",67240.985681115839,0.70168791578183465,47182.187097698363,62909.58279693115,188728.74839079345,4,3]
["AKTIV: I + FELNOTT: 3 + GYERMEK: 2 / 2018",47182.187097698363,null,null,null,"3 vagy annál több",2,"KSH adat,  2.2.3.16 tábla, 2018","gyermekes háztartások - egyéb",67240.985681115839,0.70168791578183465,47182.187097698363,78636.978496163938,235910.93548849181,5,3]
["AKTIV: I + FELNOTT: 3 + GYERMEK: 3 / 2018",47182.187097698363,null,null,null,"3 vagy annál több",3,"KSH adat,  2.2.3.16 tábla, 2018","gyermekes háztartások - egyéb",67240.985681115839,0.70168791578183465,47182.187097698363,94364.374195396726,283093.12258619018,6,3]
["AKTIV: I + FELNOTT: 3 + GYERMEK: 4 / 2018",47182.187097698363,null,null,null,"3 vagy annál több","4 vagy annál több","KSH adat,  2.2.3.16 tábla, 2018","gyermekes háztartások - egyéb",67240.985681115839,0.70168791578183465,47182.187097698363,110091.76989462953,330275.30968388857,7,3]
["AKTIV: N + FELNOTT: 1 + GYERMEK: 0 / 2018",{"$f":"+B2","v":111290.84254723274}]
["AKTIV: N + FELNOTT: 1 + GYERMEK: 1 / 2018",{"$f":"+B3","v":56741.786973466718}]
["AKTIV: N + FELNOTT: 1 + GYERMEK: 2 / 2018",56741.786973466718]
["AKTIV: N + FELNOTT: 1 + GYERMEK: 3 / 2018",56741.786973466718]
["AKTIV: N + FELNOTT: 1 + GYERMEK: 4 / 2018",56741.786973466718]
["AKTIV: N + FELNOTT: 2 + GYERMEK: 0 / 2018",87609.462838473526]
["AKTIV: N + FELNOTT: 2 + GYERMEK: 1 / 2018",65511.388556118167]
["AKTIV: N + FELNOTT: 2 + GYERMEK: 2 / 2018",57480.689788004733]
["AKTIV: N + FELNOTT: 2 + GYERMEK: 3 / 2018",41957.613520260151]
["AKTIV: N + FELNOTT: 2 + GYERMEK: 4 / 2018",41957.613520260151]
["AKTIV: N + FELNOTT: 3 + GYERMEK: 0 / 2018",72594.755546436398]
["AKTIV: N + FELNOTT: 3 + GYERMEK: 1 / 2018",47182.187097698363]
["AKTIV: N + FELNOTT: 3 + GYERMEK: 2 / 2018",47182.187097698363]
["AKTIV: N + FELNOTT: 3 + GYERMEK: 3 / 2018",47182.187097698363]
["AKTIV: N + FELNOTT: 3 + GYERMEK: 4 / 2018",47182.187097698363]

{"sheet":"Munka1","index":2,"n_rows":0,"n_cols":0,"rows_kept":0,"cut":false,"hidden":true,"merged":[]}